bitfinex-derivatives/quotes_BTCF0:USTF0_20250318
["timestamp","ask_amount","ask_price","bid_price","bid_amount"]
[1742256348063,0.55514544,83998.0,83997.0,0.1785916]
[1742256349063,0.19434544,83998.0,83997.0,0.1785916]
[1742256349265,0.55514544,83998.0,83997.0,0.1785916]
[1742256349565,0.55515078,83998.0,83997.0,0.1785916]
[1742256349754,0.55515078,83998.0,83997.0,0.2103916]
[1742256355870,0.55515078,83998.0,83997.0,0.2436916]
[1742256360771,0.55515078,83998.0,83997.0,0.1785916]
[1742256360962,0.56110563,83998.0,83997.0,0.1785916]
[1742256361164,0.56110563,83998.0,83996.0,0.01675]
[1742256361165,0.1190613,83997.0,83996.0,0.1358119]
[1742256361460,0.13850703,83997.0,83996.0,0.1357719]
[1742256361659,0.20130703,83997.0,83996.0,0.1357719]
[1742256362372,0.19535218,83997.0,83996.0,0.1986719]
[1742256363363,0.2075077,83997.0,83996.0,0.1986719]
[1742256363568,0.19535218,83997.0,83996.0,0.1986719]
[1742256364579,0.2072379,83997.0,83996.0,0.1986719]
[1742256364775,0.20723768,83997.0,83996.0,0.1986719]
[1742256365975,0.19536969,83997.0,83996.0,0.1986719]
[1742256366376,0.20705454,83997.0,83996.0,0.1986719]
[1742256366579,0.20705454,83997.0,83996.0,0.1357719]
[1742256366962,0.19354615,83997.0,83996.0,0.1357719]
[1742256367173,0.20712119,83997.0,83996.0,0.1357719]
[1742256367779,0.20712166,83997.0,83996.0,0.1357719]
[1742256368776,0.32731655,83997.0,83996.0,0.01671]
[1742256370069,0.1190713,83990.0,83983.0,0.2138324]
[1742256370271,0.1190798,83984.0,83983.0,0.2138324]
[1742256370470,0.6136502,83984.0,83983.0,0.2138324]
[1742256370974,0.6136502,83984.0,83983.0,0.3329136]
[1742256371173,0.6747502,83984.0,83983.0,0.3329136]
[1742256371482,0.67477682,83984.0,83983.0,0.3329136]
[1742256371780,0.67477682,83984.0,83983.0,0.3659136]
[1742256373878,0.67477682,83984.0,83983.0,0.1846812]
[1742256376876,0.55569702,83984.0,83983.0,0.1846812]
[1742256377080,0.67477682,83984.0,83983.0,0.1846812]
[1742256377383,0.66882053,83984.0,83983.0,0.1846812]
[1742256378686,0.54974073,83984.0,83983.0,0.1846812]
[1742256378876,0.66882053,83984.0,83983.0,0.1846812]
[1742256382088,0.55458053,83984.0,83983.0,0.1846812]
[1742256383681,0.19378053,83984.0,83983.0,0.1846812]
[1742256383883,0.55458053,83984.0,83983.0,0.1846812]
[1742256386982,0.5546118,83984.0,83983.0,0.1846812]
[1742256388291,0.55460042,83984.0,83983.0,0.1846812]
[1742256392692,0.5605566,83984.0,83983.0,0.1846812]
[1742256393995,0.56052372,83984.0,83983.0,0.1846812]
[1742256396489,0.1190812,83983.0,83982.0,4e-05]
[1742256396790,0.13862512,83983.0,83982.0,4e-05]
[1742256396992,0.20382512,83983.0,83982.0,4e-05]
[1742256397499,0.20382512,83983.0,83982.0,0.1191226]
[1742256398296,0.20382512,83983.0,83982.0,0.03144]
[1742256398599,0.20382512,83983.0,83982.0,0.0314]
[1742256399187,0.1190826,83982.0,83981.0,0.03044]
[1742256399390,0.16962652,83982.0,83981.0,0.03044]
[1742256399590,0.23312652,83982.0,83981.0,0.03044]
[1742256400598,0.23312652,83982.0,83981.0,0.0304]
[1742256401189,0.23312652,83982.0,83981.0,0.180284]
[1742256401190,0.20212652,83982.0,83981.0,0.180284]
[1742256401394,0.01358778,83982.0,83981.0,0.180284]
[1742256401596,0.12475931,83992.0,83981.0,0.180284]
[1742256401597,0.12475931,83992.0,83991.0,0.1190699]
[1742256401786,0.13840576,83992.0,83991.0,0.2190699]
[1742256402101,0.13840576,83992.0,83991.0,0.3333899]
[1742256402303,0.12475931,83992.0,83991.0,0.3333899]
[1742256402492,0.12475931,83992.0,83991.0,0.4995899]
[1742256402794,0.12475931,83992.0,83991.0,0.3995899]
[1742256403097,0.12475931,83992.0,83991.0,0.4995899]
[1742256403397,0.12475931,83992.0,83991.0,0.4298899]
[1742256404198,0.1190643,83995.0,83994.0,0.1190656]
[1742256404600,0.1829643,83995.0,83994.0,0.1190656]
[1742256404796,0.0639,83995.0,83994.0,0.1190656]
[1742256405001,0.1190589,83999.0,83998.0,0.1190599]
[1742256405300,0.1324984,83999.0,83998.0,0.1190599]
[1742256405596,0.1949984,83999.0,83998.0,0.1190599]
[1742256405798,0.0759395,83999.0,83998.0,0.1190599]
[1742256406003,0.0759395,83999.0,83998.0,0.2090599]
[1742256406213,0.36097861,84001.0,84000.0,0.1190571]
[1742256406392,0.37441227,84001.0,84000.0,0.1190571]
[1742256406592,0.49346797,84001.0,84000.0,0.1190571]
[1742256408607,0.37441227,84001.0,84000.0,0.1190571]
[1742256408905,0.36097861,84001.0,84000.0,0.1190571]
[1742256409106,0.54443431,84001.0,84000.0,0.1190571]
[1742256415099,0.54443431,84001.0,84000.0,0.1494571]
[1742256415805,0.54443431,84001.0,84000.0,0.1827571]
[1742256417611,0.57493431,84001.0,84000.0,0.1827571]
[1742256418108,0.57493431,84001.0,84000.0,0.1190571]
[1742256418908,0.57493431,84001.0,84000.0,0.1832571]
[1742256421009,0.21413431,84001.0,84000.0,0.1832571]
[1742256421210,0.1190571,84000.0,83999.0,4e-05]
[1742256421407,0.119067,83993.0,83992.0,0.00017861]
[1742256421712,0.61343323,83993.0,83992.0,0.00017861]
[1742256422510,0.67623323,83993.0,83992.0,0.11924701]
[1742256422711,0.67027723,83993.0,83992.0,0.11924701]
[1742256423513,0.67027723,83993.0,83992.0,0.18374701]
[1742256423808,0.67027723,83993.0,83992.0,0.00017861]
[1742256424213,0.67623306,83993.0,83992.0,0.00017861]
[1742256425007,0.67623578,83993.0,83992.0,0.00017861]
[1742256425811,1.03703578,83993.0,83992.0,0.00017861]
[1742256428816,1.03702572,83993.0,83992.0,0.00017861]
[1742256430707,0.1786338,83979.0,83978.0,0.1190875]
[1742256430903,0.1190897,83977.0,83976.0,0.0642]
[1742256431114,0.173783,83980.0,83968.0,4e-05]
[1742256431115,0.119101,83969.0,83968.0,4e-05]
[1742256431305,0.119101,83969.0,83968.0,0.2491425]
[1742256431500,0.119101,83969.0,83968.0,0.2091025]
[1742256431705,0.184501,83969.0,83968.0,0.1191025]
[1742256432203,0.1191025,83968.0,83967.0,0.0318]
[1742256432507,0.1513025,83968.0,83967.0,0.1509039]
[1742256432816,0.1843025,83968.0,83967.0,0.1509039]
[1742256433014,0.1843025,83968.0,83967.0,0.0318]
[1742256433612,0.19644601,83968.0,83967.0,0.0318]
[1742256433808,0.19544601,83968.0,83967.0,0.0318]
[1742256434015,0.19344601,83968.0,83967.0,0.1509039]
[1742256434310,0.1813025,83968.0,83967.0,0.1509039]
[1742256434514,0.0652,83968.0,83967.0,0.1529039]
[1742256435122,0.119092,83976.0,83975.0,0.1190911]
[1742256435913,0.150792,83976.0,83975.0,0.1797911]
[1742256436227,0.03177861,83977.0,83976.0,0.1190911]
[1742256436415,0.03177861,83977.0,83976.0,0.1797911]
[1742256436613,0.15086831,83977.0,83976.0,0.1797911]
[1742256437415,0.15186831,83977.0,83976.0,0.1797911]
[1742256439110,0.00117861,83977.0,83976.0,0.1797911]
[1742256440414,0.00117861,83977.0,83976.0,0.2897911]
[1742256442315,0.12026831,83977.0,83976.0,0.2897911]
[1742256443116,0.00117861,83977.0,83976.0,0.2897911]
[1742256443317,0.12026831,83977.0,83976.0,0.2897911]
[1742256445723,0.00117861,83977.0,83976.0,0.1797911]
[1742256446019,0.00117861,83977.0,83976.0,0.3697911]
[1742256446427,0.00117861,83977.0,83976.0,0.2697911]
[1742256446726,0.00117861,83977.0,83976.0,0.3797911]
[1742256449015,0.1902378,83997.0,83996.0,0.1190628]
[1742256449215,0.2666195,83997.0,83996.0,0.4798628]
[1742256449625,0.1475529,83997.0,83996.0,0.4798628]
[1742256449926,0.1190606,83998.0,83997.0,0.1190613]
[1742256451333,0.1533606,83998.0,83997.0,0.1190613]
[1742256465331,0.1842606,83998.0,83997.0,0.1499613]
[1742256465816,0.1842606,83998.0,83997.0,0.1813613]
[1742256466824,0.0652,83998.0,83997.0,0.1813613]
[1742256467030,0.11922721,84006.0,84005.0,0.11905]
[1742256467336,0.13252345,84006.0,84005.0,0.18045]
[1742256467526,0.16342345,84006.0,84005.0,0.18045]
[1742256467728,0.04437485,84006.0,84005.0,0.18045]
[1742256467932,0.00068,84014.0,84013.0,0.1190387]
[1742256468129,0.1190358,84016.0,84015.0,0.1190344]
[1742256468732,0.0765116,84017.0,84016.0,0.1190344]
[1742256468929,0.1626446,84017.0,84016.0,0.1516344]
[1742256469130,0.150833,84017.0,84016.0,0.1821344]
[1742256472132,0.47504,84023.0,84022.0,0.1190259]
[1742256472330,0.1842231,84024.0,84023.0,0.1190245]
[1742256472532,0.1842231,84024.0,84023.0,0.1849245]
[1742256477735,0.1842231,84024.0,84023.0,0.1523245]
[1742256479038,0.1842231,84024.0,84023.0,0.1823245]
[1742256486046,0.2143231,84024.0,84023.0,0.1823245]
[1742256486343,0.2143231,84024.0,84023.0,0.0333]
[1742256486547,0.22724687,84024.0,84023.0,0.0333]
[1742256488044,0.22722662,84024.0,84023.0,0.0333]
[1742256492444,0.1190245,84023.0,84022.0,4e-05]
[1742256492651,0.13192802,84023.0,84022.0,4e-05]
[1742256492851,0.19452802,84023.0,84022.0,4e-05]
[1742256494141,0.1190288,84020.0,84019.0,0.1513299]
[1742256494450,0.13193232,84020.0,84019.0,0.1513299]
[1742256494647,0.13193232,84020.0,84013.0,0.4209189]
[1742256494648,0.1190373,84014.0,84013.0,0.3614]
[1742256494844,0.1190415,84011.0,84010.0,0.0323]
[1742256495039,0.13194502,84011.0,84010.0,0.0323]
[1742256495351,0.1190443,84009.0,84008.0,0.00017861]
[1742256495548,0.13194782,84009.0,84008.0,0.00017861]
[1742256495952,0.19354782,84009.0,84008.0,0.00017861]
[1742256498346,0.20549365,84009.0,84008.0,0.00017861]
[1742256499339,0.20560217,84009.0,84008.0,0.00017861]
[1742256505352,0.56640217,84009.0,84008.0,0.00017861]
[1742256505553,0.56640217,84009.0,84003.0,0.0302]
[1742256505554,0.0595236,84007.0,84003.0,0.0302]
[1742256505857,0.1190514,84004.0,84003.0,0.0302]
[1742256506058,0.1190514,84004.0,83999.0,0.0328]
[1742256506059,0.1190571,84000.0,83999.0,0.0328]
[1742256506261,0.49286914,84000.0,83999.0,0.0328]
[1742256506754,0.1190642,83995.0,83994.0,0.0324]
[1742256506950,0.24527624,83995.0,83994.0,0.0324]
[1742256507559,0.30537624,83995.0,83994.0,0.0324]
[1742256516066,0.30525393,83995.0,83994.0,0.0324]
[1742256516266,0.66605393,83995.0,83994.0,0.0324]
[1742256517856,0.66604708,83995.0,83994.0,0.0324]
[1742256518162,0.1190684,83992.0,83991.0,0.00017861]
[1742256518364,0.1190883,83978.0,83977.0,0.0303]
[1742256518671,0.24213373,83978.0,83977.0,0.0303]
[1742256518972,0.2333283,83978.0,83977.0,0.0303]
[1742256519671,0.30911646,83978.0,83977.0,0.0303]
[1742256520870,0.30911646,83978.0,83977.0,0.1493897]
[1742256521867,0.30911646,83978.0,83977.0,0.0303]
[1742256522292,0.32200192,83978.0,83977.0,0.0303]
[1742256523275,0.32199927,83978.0,83977.0,0.0303]
[1742256524171,0.32199988,83978.0,83977.0,0.0303]
[1742256528661,0.20775988,83978.0,83977.0,0.0303]
[1742256528867,0.25819988,83978.0,83977.0,0.0303]
[1742256529066,0.29119988,83978.0,83977.0,0.0303]
[1742256530777,0.32309988,83978.0,83977.0,0.0303]
[1742256532274,0.25819988,83978.0,83977.0,0.1493897]
[1742256534085,0.25819988,83978.0,83977.0,0.1826897]
[1742256535270,0.25821892,83978.0,83977.0,0.1826897]
[1742256536978,0.28951892,83978.0,83977.0,0.1826897]
[1742256537572,0.25821892,83978.0,83977.0,0.1826897]
[1742256538778,0.28951892,83978.0,83977.0,0.1826897]
[1742256539483,0.28951892,83978.0,83977.0,0.0636]
[1742256539687,0.32281892,83978.0,83977.0,0.0636]
[1742256540683,0.28951892,83978.0,83977.0,0.0636]
[1742256541482,0.32241892,83978.0,83977.0,0.0636]
[1742256547187,0.32241892,83978.0,83977.0,0.0303]
[1742256549983,0.1190982,83971.0,83970.0,0.0302]
[1742256550187,0.60704066,83971.0,83970.0,0.0302]
[1742256550384,0.63874066,83971.0,83970.0,0.0302]
[1742256551184,0.63874066,83971.0,83970.0,0.001]
[1742256551379,0.67094066,83971.0,83970.0,0.002]
[1742256552086,0.67094066,83971.0,83970.0,0.001]
[1742256552581,0.67094066,83971.0,83961.0,0.1818122]
[1742256552582,0.119111,83962.0,83961.0,0.1818122]
[1742256552781,0.24625346,83962.0,83961.0,0.1818122]
[1742256553383,0.27885346,83962.0,83961.0,0.1818122]
[1742256554391,0.27985346,83962.0,83961.0,0.1818122]
[1742256554579,0.28085346,83962.0,83961.0,0.1818122]
[1742256555286,0.267951,83962.0,83961.0,0.1818122]
[1742256557093,0.24827632,83962.0,83961.0,0.1818122]
[1742256557778,0.31187632,83962.0,83961.0,0.1818122]
[1742256558185,0.27917632,83962.0,83961.0,0.1818122]
[1742256558990,0.31187632,83962.0,83961.0,0.1818122]
[1742256560303,0.27917632,83962.0,83961.0,0.1818122]
[1742256561495,0.31207632,83962.0,83961.0,0.1818122]
[1742256564497,0.27917632,83962.0,83961.0,0.1818122]
[1742256567502,0.31067632,83962.0,83961.0,0.1818122]
[1742256571207,0.31067632,83962.0,83961.0,0.2918122]
[1742256571708,0.01492532,83962.0,83961.0,0.2918122]
[1742256571895,0.002,83962.0,83961.0,0.2918122]
[1742256572497,0.002,83962.0,83961.0,0.30371128]
[1742256573507,0.002,83962.0,83961.0,0.39371128]
[1742256574007,0.002,83962.0,83961.0,0.30371128]
[1742256574307,0.002,83962.0,83961.0,0.2918122]
[1742256574812,0.002,83962.0,83961.0,0.30573088]
[1742256575198,0.002,83962.0,83961.0,0.2918122]
[1742256575607,0.121111,83962.0,83961.0,0.2918122]
[1742256576307,0.153911,83962.0,83961.0,0.2918122]
[1742256576502,0.184111,83962.0,83961.0,0.2918122]
[1742256578209,0.184111,83962.0,83961.0,0.6526122]
[1742256579413,0.065,83962.0,83961.0,0.6526122]
[1742256579614,0.002,83962.0,83961.0,0.6526122]
[1742256579810,0.002,83962.0,83961.0,0.7743122]
[1742256580107,0.002,83962.0,83961.0,0.6843122]
[1742256580317,0.002,83962.0,83961.0,0.7843122]
[1742256581201,0.002,83962.0,83961.0,0.7943122]
[1742256582326,0.002,83962.0,83961.0,0.6943122]
[1742256584711,0.002,83962.0,83961.0,0.9243122]
[1742256584912,0.0322,83967.0,83966.0,0.1191053]
[1742256585112,0.0322,83967.0,83966.0,0.3991053]
[1742256585307,0.1513039,83967.0,83966.0,0.1191053]
[1742256585512,0.1513039,83967.0,83966.0,0.2191053]
[1742256585714,0.0322,83967.0,83966.0,0.2191053]
[1742256586720,0.0332,83967.0,83966.0,0.2191053]
[1742256587018,0.11492,83976.0,83975.0,0.1190925]
[1742256587319,0.2340111,83976.0,83975.0,0.1190925]
[1742256587512,0.1521911,83976.0,83975.0,0.1190925]
[1742256588519,0.0324,83977.0,83976.0,0.1190911]
[1742256588912,0.0324,83977.0,83976.0,0.2290911]
[1742256589107,0.0324,83977.0,83976.0,0.1190911]
[1742256589313,0.0324,83977.0,83976.0,0.2090911]
[1742256590414,0.1514897,83977.0,83976.0,0.1190911]
[1742256591321,0.1524897,83977.0,83976.0,0.1190911]
[1742256592522,0.15148662,83977.0,83976.0,0.1190911]
[1742256595425,0.15148662,83977.0,83976.0,0.1516911]
[1742256601028,0.18158662,83977.0,83976.0,0.1516911]
[1742256603422,0.18158662,83977.0,83976.0,0.1827911]
[1742256604013,0.1190911,83976.0,83975.0,4e-05]
[1742256604214,0.1497911,83976.0,83975.0,4e-05]
[1742256604439,0.2125911,83976.0,83975.0,4e-05]
[1742256604726,0.22500296,83976.0,83975.0,4e-05]
[1742256605413,0.1191039,83967.0,83966.0,0.0324]
[1742256606219,0.1498039,83967.0,83966.0,0.0324]
[1742256606727,0.1191067,83965.0,83964.0,0.3614]
[1742256606933,0.1191067,83965.0,83964.0,0.3708]
[1742256607126,0.1191067,83965.0,83964.0,0.4899081]
[1742256608625,0.1191067,83965.0,83964.0,0.3708]
[1742256608925,0.1191067,83965.0,83964.0,0.4899081]
[1742256609118,0.1201067,83965.0,83964.0,0.4899081]
[1742256609526,0.1201067,83965.0,83964.0,0.3708]
[1742256610519,0.13191782,83965.0,83964.0,0.3708]
[1742256614434,0.24683782,83965.0,83964.0,0.3708]
[1742256614624,0.24683782,83965.0,83964.0,0.3608]
[1742256614822,0.25930863,83965.0,83964.0,0.3608]
[1742256615231,0.1191081,83964.0,83963.0,4e-05]
[1742256615530,0.1191152,83959.0,83958.0,0.0312]
[1742256615733,0.2340752,83959.0,83958.0,0.0312]
[1742256616325,0.2989752,83959.0,83958.0,0.0312]
[1742256619027,0.2989752,83959.0,83958.0,0.1834167]
[1742256619426,0.2989752,83959.0,83958.0,0.0643]
[1742256619632,0.2989752,83959.0,83958.0,0.1834167]
[1742256622032,0.2989752,83959.0,83958.0,0.0643]
[1742256622236,0.2989752,83959.0,83958.0,0.1834167]
[1742256622621,0.2989752,83959.0,83958.0,0.0643]
[1742256632045,0.01181112,83965.0,83958.0,0.0643]
[1742256632046,0.01482852,83982.0,83958.0,1.1543]
[1742256632227,0.27079044,83992.0,83991.0,0.1190699]
[1742256632427,0.12109044,83992.0,83991.0,1.2255899]
[1742256632644,0.08829982,83992.0,83991.0,1.0455899]
[1742256632839,0.08829982,83992.0,83991.0,0.9455899]
[1742256633143,0.08829982,83992.0,83991.0,1.05731101]
[1742256634246,0.08829982,83992.0,83991.0,1.0455899]
[1742256634645,0.1190602,83998.0,83997.0,0.1190613]
[1742256634939,0.1190602,83998.0,83997.0,0.6298613]
[1742256635543,0.1190602,83998.0,83997.0,0.4798613]
[1742256635737,0.09220721,84000.0,83999.0,0.1190585]
[1742256636247,0.03267861,84000.0,83999.0,0.1190585]
[1742256637046,0.03367861,84000.0,83999.0,0.1190585]
[1742256637436,0.15273571,84000.0,83999.0,0.1190585]
[1742256637638,0.03367861,84000.0,83999.0,0.1190585]
[1742256638042,0.06697861,84000.0,83999.0,0.1190585]
[1742256638440,0.06697861,84000.0,83999.0,0.1820585]
[1742256641840,0.06697861,84000.0,83999.0,0.5428585]
[1742256645151,0.06897861,84000.0,83999.0,0.5428585]
[1742256645942,0.06997861,84000.0,83999.0,0.5428585]
[1742256651753,0.22043571,84000.0,83999.0,0.5428585]
[1742256654441,0.22043571,84000.0,83999.0,0.3608]
[1742256654647,0.33535571,84000.0,83999.0,0.3608]
[1742256656949,0.33335571,84000.0,83999.0,0.3608]
[1742256657149,0.33535571,84000.0,83999.0,0.3608]
[1742256657653,0.1190769,83986.0,83985.0,0.3608]
[1742256657852,0.1190769,83986.0,83973.0,0.4798948]
[1742256657853,0.1190798,83984.0,83973.0,0.4798948]
[1742256658048,0.1190798,83984.0,83973.0,0.1190948]
[1742256658248,0.1190798,83984.0,83973.0,0.420347]
[1742256658444,0.1840798,83984.0,83973.0,0.3608]
[1742256658759,0.1840798,83984.0,83974.0,0.1190926]
[1742256659060,0.1860798,83984.0,83973.0,0.3608]
[1742256659255,0.1890798,83984.0,83973.0,0.3608]
[1742256659761,0.1890798,83984.0,83973.0,0.4798943]
[1742256659953,0.1890798,83984.0,83973.0,0.3608]
[1742256661251,0.20102923,83984.0,83973.0,0.3608]
[1742256661453,0.21267139,83984.0,83973.0,0.3608]
[1742256663456,0.1191039,83967.0,83966.0,0.3608]
[1742256663652,0.1191039,83967.0,83966.0,0.3908]
[1742256664057,0.1191039,83967.0,83966.0,0.3608]
[1742256664258,0.1191181,83957.0,83956.0,0.6067324]
[1742256664566,0.1191181,83957.0,83956.0,0.6467324]
[1742256664870,0.13084812,83957.0,83956.0,0.5746324]
[1742256665075,0.1191181,83957.0,83956.0,0.5746324]
[1742256665256,0.19284693,83957.0,83956.0,0.5746324]
[1742256666365,0.19284693,83957.0,83956.0,0.5756324]
[1742256666667,0.19284693,83957.0,83956.0,0.5766324]
[1742256666957,0.19284693,83957.0,83956.0,0.5756324]
[1742256667166,0.19284693,83957.0,83956.0,0.5766324]
[1742256667557,0.19284693,83957.0,83956.0,0.3618]
[1742256672565,0.0595582,83959.0,83956.0,0.3618]
[1742256672755,0.115,83967.0,83957.0,0.1234584]
[1742256672953,0.0311,83958.0,83957.0,0.2425765]
[1742256673465,0.1502167,83958.0,83957.0,0.2425765]
[1742256673668,0.1502167,83958.0,83957.0,0.1234584]
[1742256673857,0.2651767,83958.0,83957.0,0.0325]
[1742256674257,0.2651767,83958.0,83957.0,0.1526181]
[1742256674458,0.2960767,83958.0,83957.0,0.0649]
[1742256674661,0.2960767,83958.0,83957.0,0.1840181]
[1742256674853,0.2960767,83958.0,83957.0,0.0649]
[1742256675269,0.2960767,83958.0,83957.0,0.001]
[1742256682674,0.1811167,83958.0,83957.0,0.001]
[1742256682876,0.2958767,83958.0,83957.0,0.001]
[1742256684084,0.6566767,83958.0,83957.0,0.001]
[1742256684275,0.1191337,83946.0,83942.0,0.3608]
[1742256684475,0.2338937,83946.0,83942.0,0.3608]
[1742256685388,0.2987937,83946.0,83942.0,0.3608]
[1742256685586,0.1191379,83943.0,83942.0,0.3608]
[1742256685882,0.1151379,83943.0,83942.0,0.3608]
[1742256686082,0.119145,83938.0,83937.0,0.03244]
[1742256686277,0.233905,83938.0,83937.0,0.03244]
[1742256686782,0.228905,83938.0,83937.0,0.0324]
[1742256686982,0.224905,83938.0,83937.0,0.0324]
[1742256687179,0.290305,83938.0,83937.0,0.0324]
[1742256687388,0.290305,83938.0,83937.0,0.0631]
[1742256687589,0.290305,83938.0,83937.0,0.0691]
[1742256687889,0.29960914,83938.0,83937.0,0.0691]
[1742256688593,0.30060914,83938.0,83937.0,0.011]
[1742256689182,0.31275034,83938.0,83937.0,0.011]
[1742256689384,0.31274806,83938.0,83937.0,0.011]
[1742256690086,0.31274806,83938.0,83937.0,0.007]
[1742256690394,0.19698806,83938.0,83937.0,0.003]
[1742256690588,0.31186806,83938.0,83937.0,0.1221465]
[1742256690781,0.29988914,83938.0,83937.0,0.1211465]
[1742256690981,0.29988914,83938.0,83937.0,0.002]
[1742256693385,0.31206982,83938.0,83937.0,0.002]
[1742256694797,0.08688482,83938.0,83937.0,0.4819465]
[1742256695100,0.30884914,83938.0,83937.0,0.002]
[1742256695298,0.32105523,83938.0,83937.0,0.002]
[1742256696386,0.1191521,83933.0,83932.0,4e-05]
[1742256696990,0.1191606,83927.0,83926.0,0.0328]
[1742256697190,0.2342006,83927.0,83926.0,0.0328]
[1742256697595,0.2332006,83927.0,83926.0,0.0328]
[1742256697796,0.3266006,83927.0,83926.0,0.0328]
[1742256698589,0.3266006,83927.0,83926.0,0.1519621]
[1742256698990,0.3266006,83927.0,83926.0,0.1539621]
[1742256700191,0.3266006,83927.0,83926.0,0.1559621]
[1742256701792,0.3266006,83927.0,83926.0,0.0368]
[1742256702302,0.3266006,83927.0,83926.0,0.1559621]
[1742256702502,0.3266006,83927.0,83926.0,0.1863621]
[1742256704904,0.1191558,83932.0,83931.0,0.119154]
[1742256705096,0.11496,83932.0,83931.0,0.589955]
[1742256705297,0.1191536,83932.0,83931.0,0.579955]
[1742256705502,0.1191536,83932.0,83931.0,0.479955]
[1742256707497,0.1191536,83932.0,83931.0,0.480955]
[1742256708999,0.1520536,83932.0,83931.0,0.480955]
[1742256709199,0.1520536,83932.0,83931.0,0.120155]
[1742256711805,0.1520536,83932.0,83931.0,0.001]
[1742256714108,0.1826536,83932.0,83931.0,0.001]
[1742256714602,0.1826536,83932.0,83931.0,0.120155]
[1742256715309,0.1826536,83932.0,83931.0,0.230155]
[1742256715915,0.1826536,83932.0,83931.0,0.262955]
[1742256716612,0.1826536,83932.0,83931.0,0.152955]
[1742256719214,0.1826536,83932.0,83931.0,0.0338]
[1742256719606,0.1826536,83932.0,83931.0,0.152955]
[1742256721113,0.1826536,83932.0,83931.0,0.183855]
[1742256721311,0.19481588,83932.0,83931.0,0.001]
[1742256721507,0.1191578,83929.0,83928.0,4e-05]
[1742256721708,0.1191578,83929.0,83918.0,0.2858699]
[1742256721709,0.1191649,83924.0,83918.0,0.2858699]
[1742256721908,0.13132718,83924.0,83918.0,0.2851099]
[1742256722507,0.13132718,83924.0,83918.0,0.404283]
[1742256722508,0.19612718,83924.0,83918.0,0.404283]
[1742256722711,0.07696228,83924.0,83923.0,0.3329987]
[1742256723017,0.0648,83924.0,83923.0,0.3329987]
[1742256723417,0.0648,83924.0,83923.0,0.3959987]
[1742256723719,0.1839649,83924.0,83923.0,0.3959987]
[1742256724407,0.1849649,83924.0,83923.0,0.2768324]
[1742256724608,0.1849649,83924.0,83923.0,0.2459324]
[1742256724807,0.1869649,83924.0,83923.0,0.2459324]
[1742256725013,0.1869649,83924.0,83923.0,0.3650987]
[1742256725413,0.1869649,83924.0,83923.0,0.0321]
[1742256727713,0.1869649,83924.0,83919.0,0.0902859]
[1742256727714,0.1191706,83920.0,83919.0,0.0902859]
[1742256728719,0.0331,83921.0,83920.0,0.1191706]
[1742256728912,0.1522692,83921.0,83920.0,0.1500706]
[1742256729716,0.0331,83921.0,83920.0,0.1500706]
[1742256729925,0.1522692,83921.0,83920.0,0.2500706]
[1742256730218,0.1522692,83921.0,83920.0,0.2811706]
[1742256730613,0.0331,83921.0,83920.0,0.3122706]
[1742256731018,0.0341,83921.0,83920.0,0.3122706]
[1742256731520,0.03347872,83928.0,83927.0,0.1191606]
[1742256731521,0.00017872,83928.0,83927.0,0.1191606]
[1742256731719,0.00017872,83928.0,83927.0,0.2191606]
[1742256731720,0.11933892,83928.0,83927.0,0.2191606]
[1742256731924,0.11933892,83928.0,83927.0,0.2834606]
[1742256732133,0.15003892,83928.0,83927.0,0.2834606]
[1742256732618,0.03387872,83928.0,83927.0,0.2834606]
[1742256732820,0.00317872,83928.0,83927.0,0.2834606]
[1742256733026,0.00317872,83928.0,83927.0,0.3734606]
[1742256733727,0.00317872,83928.0,83927.0,0.4884206]
[1742256734023,0.15303792,83928.0,83927.0,0.3984206]
[1742256734219,0.1191663,83923.0,83922.0,0.119167]
[1742256734424,0.119172,83919.0,83918.0,0.1191734]
[1742256734721,0.0632,83922.0,83912.0,0.0319]
[1742256734925,0.1191805,83913.0,83912.0,0.0823]
[1742256735417,0.1191805,83913.0,83912.0,0.201482]
[1742256735817,0.1819805,83913.0,83912.0,0.201482]
[1742256736426,0.1819805,83913.0,83912.0,0.169182]
[1742256737221,0.0628,83913.0,83912.0,0.169182]
[1742256737421,0.0628,83913.0,83912.0,0.204082]
[1742256737927,0.0628,83913.0,83912.0,0.206082]
[1742256739328,0.1819805,83913.0,83912.0,0.206082]
[1742256739825,0.0628,83913.0,83912.0,0.206082]
[1742256740128,0.1819805,83913.0,83912.0,0.206082]
[1742256740820,0.1819805,83913.0,83912.0,0.173182]
[1742256742030,0.1819805,83913.0,83912.0,0.143182]
[1742256743426,0.1819805,83913.0,83912.0,0.024]
[1742256743630,0.1819805,83913.0,83912.0,0.143182]
[1742256750534,0.1819805,83913.0,83912.0,0.024]
[1742256750723,0.1819805,83913.0,83912.0,0.143182]
[1742256751529,0.1819805,83913.0,83912.0,0.024]
[1742256752837,0.1819805,83913.0,83912.0,0.143182]
[1742256753131,0.1819805,83913.0,83912.0,0.024]
[1742256755540,0.19413713,83913.0,83912.0,0.024]
[1742256756730,0.30893713,83913.0,83912.0,0.143182]
[1742256756934,0.2967805,83913.0,83912.0,0.143182]
[1742256757541,0.2967805,83913.0,83912.0,0.175982]
[1742256758044,0.1819805,83913.0,83912.0,0.175982]
[1742256758242,0.2967005,83913.0,83912.0,0.175982]
[1742256758542,0.2967005,83913.0,83912.0,0.207982]
[1742256759345,0.1819805,83913.0,83912.0,0.207982]
[1742256761744,0.0628,83913.0,83912.0,0.207982]
[1742256761934,0.0628,83913.0,83912.0,0.317982]
[1742256762446,0.0628,83913.0,83912.0,0.297982]
[1742256763744,0.178757,83922.0,83921.0,0.1191627]
[1742256763949,0.0595831,83924.0,83923.0,0.1191663]
[1742256764148,0.0595831,83924.0,83923.0,0.2291663]
[1742256764349,0.0595831,83924.0,83923.0,0.1191663]
[1742256765447,0.1239831,83924.0,83923.0,0.1191663]
[1742256765752,0.13491957,83924.0,83923.0,0.1191663]
[1742256767651,0.13691957,83924.0,83923.0,0.1191663]
[1742256771854,0.1191677,83922.0,83921.0,0.4211039]
[1742256772054,0.1191677,83922.0,83921.0,0.4509839]
[1742256772654,0.1191677,83922.0,83921.0,0.3608]
[1742256773044,0.1201677,83922.0,83921.0,0.3608]
[1742256773957,0.119172,83919.0,83918.0,4e-05]
[1742256774254,0.13132269,83919.0,83918.0,4e-05]
[1742256774557,0.1191748,83917.0,83916.0,0.0307]
[1742256774850,0.1191748,83917.0,83916.0,0.1191748]
[1742256775056,0.1841748,83917.0,83916.0,0.1191748]
[1742256775243,0.1841748,83917.0,83915.0,0.0596286]
[1742256775244,0.1191763,83916.0,83915.0,4e-05]
[1742256775646,0.19655771,83916.0,83915.0,4e-05]